Cogmind - Beta 10.2 @@@ ROGUE MODE // 2021.12.03 @ 15:12:48 Player: DaddyWalrus Result: Destroyed by Y-45 Defender with Heavy Assault Rifle Performance ------------- Evolutions (0) 0 Regions Visited (2) 400 Robots Destroyed (23) 115 Value Destroyed (395) 395 Prototype IDs (0) 0 Alien Tech Used (0) 0 Bonus (0) 0 TOTAL SCORE: 910 Bonus ------- None Cogmind --------- Core Integrity 0/250 Matter 242/300 Energy 93/125 System Corruption 0% Temperature Cool (9) Movement Treading (160) Location -10/Mines Parts ------- > --- POWER (1) -------- Light Ion Engine > --- PROPULSION (2) --- Light Treads Light Treads > --- UTILITY (2) ------ Large Storage Unit Large Storage Unit > --- WEAPON (2) ------- Light Assault Rifle Light Assault Rifle > --- INVENTORY (16) --- Ion Engine Light Ion Engine Compact Wheel Compact Wheel Heat Sink Medium Matter Pod (100) Targeting Computer Medium Laser Small Laser Beam Cannon Light Assault Rifle Light Assault Rifle Datajack Hammer Peak State ------------ > --- POWER ------------ Light Ion Engine > --- PROPULSION ------- Wheel Compact Wheel > --- UTILITY ---------- Large Storage Unit Large Storage Unit > --- WEAPON ----------- Assault Rifle Assault Rifle > --- INVENTORY -------- Ion Engine Light Ion Engine Light Treads Light Treads Aluminum Leg Aluminum Leg Compact Wheel Compact Wheel Small Storage Unit Medium Laser [Rating: 8] Favorites ----------- Power Light Ion Engine Engine Light Ion Engine Propulsion Compact Wheel Treads Light Treads Wheel Compact Wheel Utility Large Storage Unit Storage Large Storage Unit Weapon Assault Rifle Ballistic Gun Assault Rifle Build | -11 -10 -10 ------- Run | Scr Mat Min Slots Evolved . | . . . Power . | . . . Propulsion . | . . . Utility . | . . . Weapon . | . . . Parts Attached 23 | 7 5 11 Power 2 | 1 . 1 Engine 2 | 1 . 1 Core . | . . . Reactor . | . . . Propulsion 9 | 2 3 4 Treads 2 | . . 2 Leg . | . . . Wheel 7 | 2 3 2 Hover . | . . . Flight . | . . . Utility 4 | 2 2 . Device . | . . . Storage 4 | 2 2 . Processor . | . . . Hackware . | . . . Protection . | . . . Artifact . | . . . Weapon 8 | 2 . 6 Energy Gun . | . . . Energy Cannon . | . . . Ballistic Gun 8 | 2 . 6 Ballistic Cannon . | . . . Launcher . | . . . Special Weapon . | . . . Impact Weapon . | . . . Slashing Weapon . | . . . Piercing Weapon . | . . . Special Melee Weapon . | . . . Unidentified Prototypes . | . . . Parts Lost 5 | . 1 4 Power . | . . . Propulsion 3 | . 1 2 Utility . | . . . Weapon 2 | . . 2 Highest Loss Streak 2 | . 1 2 Average Slot Usage (%) 99 | . 100 99 Engine 14 | . 14 14 Wheel 27 | . 28 27 Storage 28 | . 28 28 Ballistic Gun 28 | . 28 28 Naked Turns . | . . . Heaviest Build 39 | 15 39 39 Greatest Support 32 | 26 26 32 Greatest Overweight (x) 3 | . 1 3 Average Overweight (x) . | . . 1 Largest Inventory Capacity 16 | 8 16 16 Average Capacity 14 | 6 14 16 Most Carried 16 | 8 16 16 Average Carried 13 | 4 12 15 Final Capacity 16 | 8 16 16 Final Carried 16 | 8 16 14 Class Distribution -------------------- 60% | Mutant 39% | Scavenger-Mutant Dominant Class ---------------- Mutant | -10/Materials Scavenger-Mutant | -10/Mines Resources | -11 -10 -10 ----------- Run | Scr Mat Min Matter Collected 796 | 261 383 152 Remotely . | . . . Salvage Created 606 | 91 409 106 Parts 50 | 3 32 15 Haulers Intercepted . | . . . Recyclers Shooed . | . . . Parts Field Recycled . | . . . Retrieved Matter . | . . . Parts Self-Destructed . | . . . Prevented . | . . . Kills | -11 -10 -10 ------- Run | Scr Mat Min Combat Hostiles Destroyed 19 | . 11 8 Guns 19 | . 11 8 Classes Destroyed 6 | 1 4 1 Worker 1 | . 1 . Recycler 2 | 1 1 . Watcher 1 | . 1 . Swarmer 13 | . 6 7 Grunt 5 | . 5 . Demolisher 1 | . . 1 Best Kill Streak 4 | 1 4 3 Combat Bots Only 3 | . 3 3 Max Kills in Single Turn 2 | 1 1 2 Gunslinging 1 | . . 1 Exploded . | . . . Melee . | . . . Uniques/NPCs Destroyed . | . . . Combat | -11 -10 -10 -------- Run | Scr Mat Min Damage Taken 977 | . 291 686 Core 256 | . 81 175 Absorbed by Shields . | . . . Core Remaining (%) 100 | 100 . . Volleys Fired 86 | 2 40 44 Largest 2 | 2 2 2 Hottest 40 | 40 40 40 Shots Fired 172 | 4 80 88 Gun 172 | 4 80 88 Cannon . | . . . Launcher . | . . . Special . | . . . Kinetic 172 | 4 80 88 Thermal . | . . . Explosive . | . . . Electromagnetic . | . . . Robot Hit Streak 8 | 3 8 7 Robot Miss Streak 9 | . 4 9 Penetration Max . | . . . Secondary Targets 4 | . 1 3 Max Gunslinging Chain 1 | . 1 1 Shots Hit Robots 89 | 3 47 39 Core Hits 34 | 2 21 11 Critical Hits 2 | . . 2 Critical Kills . | . . . Critical Parts Destroyed 2 | . . 2 Melee Attacks . | . . . Impact . | . . . Slashing . | . . . Piercing . | . . . Sneak Attacks . | . . . Combat Hostiles . | . . . Follow-up Attacks . | . . . Damage Inflicted 879 | 35 558 286 Guns 872 | 34 558 280 Cannons . | . . . Explosions . | . . . Melee . | . . . Ramming 7 | 1 . 6 Kinetic 872 | 34 558 280 Thermal . | . . . Explosive . | . . . Electromagnetic . | . . . Impact . | . . . Slashing . | . . . Piercing . | . . . Highest Corruption . | . . . Average Corruption . | . . . Corruption Purged . | . . . Overload Shots . | . . . Overflow Damage . | . . . Projectiles . | . . . Explosions . | . . . Melee . | . . . Knockbacks . | . . . Impact . | . . . Kinetic . | . . . Secondary . | . . . Self-Inflicted Damage 3 | . . 3 Shots . | . . . Rammed 2 | 1 . 1 Targets Rammed 2 | 1 . 1 Kicked . | . . . Crushed . | . . . Highest Temperature 18 | 6 6 18 Average Temperature 7 | 6 3 10 Received Heat Transfer 138 | . 93 45 Siege Activations . | . . . Robots Corrupted . | . . . Combat Hostiles . | . . . Parts Fried . | . . . Impact Corruptions . | . . . Robots Melted . | . . . Combat Hostiles . | . . . Parts Melted . | . . . Heat Transferred . | . . . Parts Sabotaged . | . . . Parts Stolen . | . . . Parts Stripped . | . . . Power Chain Reactions . | . . . Missiles Intercepted . | . . . Alert | -11 -10 -10 ------- Run | Scr Mat Min Peak Influence 235 | 5 235 125 Initial 36 | . 3 36 Average 79 | 2 95 76 Maximum Alert Level 1 | . 1 . Low Security (%) 93 | 100 85 100 Level 1 6 | . 14 . Level 2 . | . . . Level 3 . | . . . Level 4 . | . . . Level 5 . | . . . High Security . | . . . Max Security . | . . . Squads Dispatched 1 | . 1 . Investigation 1 | . 1 . Extermination . | . . . Reinforcement . | . . . Assault . | . . . Garrison . | . . . Intercept . | . . . Construction Impeded . | . . . Haulers Reinforced . | . . . Stealth | -11 -10 -10 --------- Run | Scr Mat Min Distress Signals 3 | . 3 . Communications Jammed . | . . . Distress Signals . | . . . Times Spotted 32 | . 17 15 Peak Tracking Total 5 | . 4 5 Tactical Retreats 4 | . . 4 Traps | -11 -10 -10 ------- Run | Scr Mat Min Traps Triggered 1 | . 1 . Indirectly . | . . . Trap Hack Attempts . | . . . Triggered . | . . . Disarmed . | . . . Reprogrammed . | . . . Reused . | . . . Traps Extracted . | . . . Installed . | . . . Triggered . | . . . Machines | -11 -10 -10 ---------- Run | Scr Mat Min Machines Disabled . | . . . Max in Single Turn . | . . . Machines Sabotaged . | . . . Garrisons Compromised . | . . . Overloaded Fab Kills . | . . . Fab Network Shutdowns . | . . . Hacking | -11 -10 -10 --------- Run | Scr Mat Min Machines Accessed 3 | . 3 . Terminals 2 | . 2 . Fabricators . | . . . Repair Stations . | . . . Recycling Units 1 | . 1 . Scanalyzers . | . . . Garrison Access . | . . . Total Hacks 7 | . 7 . Successful 2 | . 2 . Failed 5 | . 5 . Catastrophic 1 | . 1 . Database Lockouts . | . . . Manual 4 | . 4 . Terminals 4 | . 4 . Fabricators . | . . . Repair Stations . | . . . Recycling Units 3 | . 3 . Scanalyzers . | . . . Garrison Access . | . . . Terminal Hacks 1 | . 1 . Unreport Threat 1 | . 1 . Fabricator Hacks . | . . . Repair Station Hacks . | . . . Recycling Unit Hacks 1 | . 1 . Report Inventory 1 | . 1 . Scanalyzer . | . . . Garrison Access Hacks . | . . . Unauthorized Hacks . | . . . Terminals . | . . . Fabricators . | . . . Repair Stations . | . . . Recycling Units . | . . . Scanalyzers . | . . . Garrison Access . | . . . Data Cores Recovered . | . . . Used . | . . . Hacking Detections 2 | . 2 . Full Trace Events . | . . . Feedback Events . | . . . Feedback Blocked . | . . . Robot Schematics Acquired . | . . . Robots Built . | . . . Matter . | . . . Time . | . . . Total Robot Build Rating . | . . . Part Schematics Acquired . | . . . Parts Built . | . . . Matter . | . . . Time . | . . . Total Part Build Rating . | . . . Parts Repaired . | . . . Time . | . . . Parts Recycled . | . . . Recycled Matter . | . . . Retrieved Matter . | . . . Retrieved Components . | . . . Parts Scanalyzed . | . . . Part Schematics Acquired . | . . . Parts Damaged . | . . . Bothacking | -11 -10 -10 ------------ Run | Scr Mat Min Used RIF Installer . | . . . Robots Hacked . | . . . Non-combat . | . . . Combat . | . . . Robot Hacks Applied . | . . . Relay Couplers Released . | . . . Robots Rewired . | . . . Allies Hacked . | . . . Hacks Repelled . | . . . Allies | -11 -10 -10 -------- Run | Scr Mat Min Total Allies 3 | . . 3 Largest Group 3 | . . 3 Highest-Rated Group 40 | . . 40 Highest-Rated Ally 16 | . . 16 Total Orders . | . . . Ally Attacks 19 | . . 19 Total Damage 181 | . . 181 Kills 2 | . . 2 Allies Corrupted 1 | . . 1 Allies Melted . | . . . Intel | -11 -10 -10 ------- Run | Scr Mat Min Robot Analysis Total . | . . . Derelict Logs Recovered 1 | . . 1 Drone Launches . | . . . Drone Recoveries . | . . . Exploration | -11 -10 -10 ------------- Run | Scr Mat Min Turns Passed 1178 | 99 560 519 Spaces Moved 835 | 79 377 379 Core 5 | 5 . . Treads . | . . . Legs . | . . . Wheels 830 | 74 377 379 Hover . | . . . Flight . | . . . Fastest Speed 50 | 50 90 100 Average Speed 98 | 87 97 101 Slowest Speed 110 | 100 100 110 Overloaded Moves . | . . . Propulsion Burnouts . | . . . Robots Hopped . | . . . Cave-ins Triggered . | . . . Exploration Rate (%) 44 | 5 54 74 Regions Visited 2 Branch Regions 1 Pre-discovered Areas . | . . . Known Exits Taken . | . . . Unknown Exits Taken 2 | 1 1 . Scrap Searched 1 | . . 1 Spaces Dug . | . . . Terrain Destroyed . | . . . Melee . | . . . Projectile . | . . . AOE . | . . . Terrain Rammed . | . . . Walls Destroyed . | . . . Machines Disabled . | . . . Actions | -11 -10 -10 --------- Run | Scr Mat Min Total 1039 | 103 493 443 Wait 52 | . 49 3 Move 834 | 79 376 379 Hop . | . . . Pick Up 27 | 12 14 1 Fast Attach 7 | 6 . 1 Attach 6 | 1 1 4 Detach . | . . . Swap 10 | . 4 6 Drop 16 | 3 9 4 Fire 86 | 2 40 44 Melee . | . . . Ram 1 | . . 1 Kick . | . . . Crush . | . . . Escape Stasis . | . . . Rewire . | . . . Trap . | . . . Miscellaneous . | . . . Route ------- -11/Scrapyard -10/Materials -10/Mines (discovered 1 exit: [*Mat]) History --------- Turn | Location | Event 17 | -11/Scrapyard | Discovered new exit (range 15) 100 | -11/Scrapyard | Entered Materials 315 | -10/Materials | Build established: Mutant 361 | -10/Materials | Discovered new exit (range 7) 660 | -10/Materials | Entered Mines 675 | -10/Mines | Discovered new exit (range 9) 789 | -10/Mines | Assembled infested the area 794 | -10/Mines | Assisted by a Guerilla fighting off Assembled 821 | -10/Mines | Assisted by bots powering up and referring to "LRC-V3" 889 | -10/Mines | Learned location of 1 exit from Materials 1011 | -10/Mines | Build established: Scavenger-Mutant 1045 | -10/Mines | Core integrity fell below 50% 1156 | -10/Mines | Core integrity fell below 20% 1179 | -10/Mines | Destroyed by Y-45 Defender with Heavy Assault Rifle Last Messages --------------- 01024_ Acquired 1 matter. 01050_ S-10 Pest suffers critical hit. 01050_ Destroyed Lgt. Assault Rifle. 01058_ Wheel destroyed. 01068_ U-05 Engineer lays Concrete. 01070_ U-05 Engineer builds a Wall. 01074_ S-10 Pest destroyed. 01074_ Switching to secondary target: S-10 Pest. 01076_ U-05 Engineer builds a Wall. 01077_ S-10 Pest destroyed. 01086_ Acquired 39 matter. 01093_ Acquired 10 matter. 01095_ Acquired 2 matter. 01095_ K-01 Serf cleans the Laser Drill. 01107_ K-01 Serf cleans the Core Extractor. 01113_ K-01 Serf cleans the Laser Drill. 01154_ S-10 Pest destroyed. 01170_ Lgt. Assault Rifle destroyed. 01177_ S-10 Pest destroyed. 01177_ Switching to secondary target: Y-45 Defender. Map ----- +----------------------------------------------------+ | | | | | | | | | | | | | | | | | | | | | | | | | | | | | | | | | | | | | | | ?????????????????????????????????????????????????? | | ?????????????????????????????????????????????????? | | ?????????????????????????????????###?????????????? | | ??????????????????????????????? #?????????????? | | ???????????????????????###### """ #?????????????? | | ???????????????????????# [s% """ #?????????????? | | ???????????????????????# @### """ #?????????????? | | ???????????????????????# #???? #?????????????? | | ???????????????????????# #?????? #?????????????? | | ???????????????????????# #????????#?????????????? | | ???????????????????????# #??????????????????????? | | ??????????############## #??????????????????????? | | ?????????? ## #??????????????????????? | | ?????????? ## #??????????????????????? | | ??????????""" """ """ ## #??????????????????????? | | ??????????""" """ """ ## #????????? ????????? | | ??????""" """ """ """ ## #???????# ???????? | | ?? #?????## ???????? | | ??????""" """ """ """ ## #?????# ???????? | | ??????????""" """ """ ## Y#????? ???????? | | ??????""" """ """ """ ## ???? ???????? | | ?? # ###???? ????????? | | ??????""" """ """ """ # #??????? ????????? | | ??????????""" """ """ # #???????# ????????? | | ??????""" """ """ """ # ???????# #????????? | | ?? # ##????# #????????? | | ????????#########* #### #????# #????????? | | ??????????????###% = #???# #????????? | | ?????????????## #=%##### #???# ##???????? | | ?????????????# %%= ### ???????# ##??????? | | ????????????## #?? ????????# ##?????? | +----------------------------------------------------+ Best States ------------- Heat Dissipation 25 Energy Generation 10 Energy Capacity 125 Matter Stores 300 Matter Capacity 300 Sight Range 16 Terrain Scan Density 10 Evasion (%) 42 Item Schematics ----------------- None Robot Schematics ------------------ None Fabricated ------------ Nothing Alien Tech Used ----------------- None Achievements -------------- None Challenges ------------ None Game ------ Seed ScatterAlloyExoskeleton Manual? 0 Play Time 00:14:03 Cumulative 51.2 hours Start 2021.12.03 @ 14:58:39 End 2021.12.03 @ 15:12:48 Sessions 1 Manual Loads 0 Difficulty Rogue Special Mode None Game No. 15 Rogue 15 Adventurer 0 Explorer 0 Win Type - Total 0 Types 0/0/0/0/0/0/0/0/0 Lore% 29 Gallery% 40 Achievement% 26 Wizard Run 0 Options --------- ASCII 1 Keyboard 1 Movement Numpad Keybinds 0 Fullscreen 1 Font 36/Smallcaps Map View 76x50 Tactical HUD 1 Map Filters NONE Filters NONE Steam 1 RUN: 25172af5-4c0e-423c-be52-7ec62d25875c